bitfinex-derivatives/quotes_ETHF0:USTF0_20250830
["timestamp","ask_amount","ask_price","bid_price","bid_amount"]
[1756566916908,0.488,4366.8,4366.7,3.842]
[1756566917301,0.488,4366.8,4366.7,3.4017]
[1756566917500,0.488,4366.8,4366.7,3.842]
[1756566917804,0.3007,4366.8,4366.7,3.842]
[1756566918510,0.488,4366.8,4366.7,3.61]
[1756566918708,0.488,4366.8,4366.7,3.4398]
[1756566919407,0.488,4366.8,4366.7,3.2078]
[1756566919610,0.488,4366.8,4366.7,3.4398]
[1756566919906,4.717,4366.8,4366.7,0.232]
[1756566920305,0.488,4366.8,4366.7,0.232]
[1756566921005,0.3007,4367.2,4367.1,0.1939]
[1756566921311,0.488,4367.7,4367.6,0.2878]
[1756566921506,0.488,4367.7,4367.6,0.5198]
[1756566922508,3.2078,4368.1,4367.6,0.5198]
[1756566922713,0.488,4368.0,4367.9,0.2441]
[1756566922912,0.488,4368.0,4367.9,0.4761]
[1756566923115,0.488,4368.0,4367.9,0.3822]
[1756566923309,0.488,4368.0,4367.9,0.4761]
[1756566923514,0.3007,4368.0,4367.9,0.4761]
[1756566923811,0.488,4368.5,4368.4,0.2441]
[1756566924013,0.488,4368.5,4368.4,0.4761]
[1756566924309,0.488,4368.5,4367.5,3.2078]
[1756566924310,0.488,4368.5,4368.0,0.0939]
[1756566924501,0.488,4367.6,4367.5,3.4519]
[1756566924705,0.488,4367.6,4367.5,3.6839]
[1756566925606,3.2078,4368.6,4367.6,0.0939]
[1756566925813,0.3007,4368.5,4367.6,0.0939]
[1756566926113,0.488,4367.7,4367.6,0.2441]
[1756566926613,0.3007,4367.7,4367.6,0.2441]
[1756566927514,0.3007,4368.5,4367.7,0.0939]
[1756566927811,0.3007,4368.5,4367.9,0.0939]
[1756566928417,0.488,4368.5,4368.4,0.2441]
[1756566928613,0.488,4368.5,4368.4,0.4761]
[1756566929216,1.14528304,4368.5,4368.4,0.4761]
[1756566929413,0.488,4368.5,4368.4,0.4761]
[1756566932418,3.2078,4369.1,4368.4,0.4761]
[1756566932617,0.1873,4368.6,4368.5,0.1502]
[1756566932817,0.488,4368.6,4368.5,0.2441]
[1756566936214,0.488,4368.6,4368.5,3.4519]
[1756566938820,0.301,4369.5,4368.5,3.358]
[1756566939121,0.301,4369.3,4368.6,0.0946]
[1756566939419,0.65619734,4369.4,4368.6,0.0946]
[1756566939420,0.5061,4368.7,4368.6,0.2459]
[1756566942618,0.5061,4368.7,4368.6,0.4779]
[1756566942919,0.5061,4368.7,4368.6,0.232]
[1756566943120,0.5061,4368.6,4368.5,3.2078]
[1756566943317,0.5061,4368.6,4368.5,3.4398]
[1756566944919,0.5061,4368.6,4368.5,3.6857]
[1756566947917,0.301,4369.4,4368.6,0.0946]
[1756566948113,0.65620544,4369.3,4368.8,0.0946]
[1756566948317,0.5061,4369.2,4369.1,0.2459]
[1756566949525,0.5061,4369.2,4369.1,0.1513]
[1756566949727,0.5061,4369.2,4369.1,0.2459]
[1756566952328,0.5061,4369.2,4369.1,0.1513]
[1756566952527,0.5061,4369.2,4368.9,0.3266]
[1756566952821,0.5061,4369.2,4368.9,0.232]
[1756566953324,0.5061,4369.2,4369.1,0.1513]
[1756566953522,0.5061,4369.2,4369.1,0.2459]
[1756566953926,0.5061,4369.2,4369.1,0.1513]
[1756566954327,0.5061,4369.2,4368.9,0.232]
[1756566954526,0.5061,4369.2,4368.9,0.3266]
[1756566955529,0.5061,4369.2,4369.0,0.0946]
[1756566955725,0.5061,4369.2,4369.1,0.2459]
[1756566955932,0.5061,4369.2,4368.9,0.232]
[1756566956129,0.5061,4369.2,4368.9,0.3266]
[1756566956629,0.5061,4369.2,4369.0,0.0946]
[1756566957032,0.5061,4369.2,4369.1,0.1513]
[1756566957229,0.5061,4369.2,4369.1,0.2459]
[1756566957422,1.16393975,4369.2,4369.1,0.2459]
[1756566959433,1.16393975,4369.2,4369.1,0.1513]
[1756566960031,1.16393975,4369.2,4368.9,0.3266]
[1756566960332,0.5061,4369.2,4369.0,0.0946]
[1756566961231,0.5061,4369.2,4368.9,0.232]
[1756566961433,0.5061,4369.2,4369.0,0.0946]
[1756566961632,0.5061,4369.2,4368.9,0.3266]
[1756566962327,0.5061,4369.2,4369.1,0.1513]
[1756566962527,0.5061,4369.2,4369.1,0.2459]
[1756566967132,0.5061,4369.1,4369.0,3.2078]
[1756566967336,0.5061,4369.1,4369.0,3.5336]
[1756566968333,0.5061,4369.1,4369.0,3.6837]
[1756566970635,0.1,4370.2,4369.1,0.0938]
[1756566970833,1.18737203,4370.1,4369.1,0.0938]
[1756566971033,0.65802203,4370.0,4369.1,0.0938]
[1756566971227,0.5056,4369.2,4369.1,0.2439]
[1756566971433,0.3005,4369.2,4369.1,0.2439]
[1756566972441,0.5056,4369.1,4369.0,3.2078]
[1756566972641,0.5056,4369.1,4369.0,3.4398]
[1756566973640,0.5056,4369.1,4369.0,3.6837]
[1756566976638,3.2078,4370.1,4369.0,3.6837]
[1756566976835,0.3005,4369.9,4369.1,0.0938]
[1756566977034,0.65734509,4370.0,4369.2,0.3821]
[1756566977035,0.2051,4369.3,4369.2,0.3821]
[1756566977235,0.5056,4369.3,4369.2,0.3821]
[1756566977643,0.5056,4369.3,4369.2,0.4759]
[1756566977941,0.3005,4369.3,4369.2,0.4759]
[1756566978130,0.1,4370.2,4369.2,0.4759]
[1756566978337,0.5056,4370.0,4369.9,0.2439]
[1756566978537,1.16300673,4370.0,4369.9,0.4759]
[1756566980241,0.5056,4370.0,4369.9,0.4759]
[1756566980838,0.5056,4370.0,4369.9,0.232]
[1756566984347,0.5056,4370.0,4369.9,0.4759]
[1756566985852,0.3005,4370.0,4369.9,0.4759]
[1756566986042,0.4005,4370.2,4370.1,0.1501]
[1756566986238,0.4005,4370.2,4370.1,0.2439]
[1756566988039,0.6056,4370.2,4370.1,0.2439]
[1756566990445,0.4005,4370.2,4370.1,0.2439]
[1756566991151,0.1,4370.2,4370.1,0.2439]
[1756566992350,0.4005,4370.2,4370.1,0.2439]
[1756566992548,0.1,4370.2,4370.1,0.2439]
[1756566994247,0.4005,4370.2,4370.1,0.2439]
[1756566994954,0.3051,4370.2,4370.1,0.231]
[1756566995155,0.3051,4370.2,4370.1,0.4749]
[1756566995543,0.6056,4370.2,4370.1,0.4749]
[1756566996656,0.6056,4370.2,4370.0,3.2078]
[1756566996856,0.5056,4370.1,4370.0,3.2078]
[1756566997058,0.5056,4370.1,4370.0,3.4388]
[1756566997953,0.5056,4370.1,4370.0,3.2078]
[1756566998157,4.5056,4370.1,4369.6,5.308]
[1756566998355,0.5056,4370.1,4369.7,0.231]
[1756566998559,0.2936,4370.0,4369.7,0.5351]
[1756566998757,0.4955,4369.8,4369.7,0.496]
[1756566998957,0.4955,4369.8,4369.7,0.727]
[1756566999550,0.2936,4369.7,4369.5,36.1708]
[1756566999756,0.4955,4369.7,4369.6,0.231]
[1756567000156,0.4955,4369.7,4369.6,0.727]
[1756567000354,0.1,4370.2,4369.6,0.727]
[1756567000554,0.1,4370.2,4369.7,0.3041]
[1756567000764,0.5955,4370.2,4370.1,0.496]
[1756567001059,0.5955,4370.2,4370.1,0.727]
[1756567002257,0.1,4370.2,4370.1,0.727]
[1756567003062,0.1,4370.2,4370.1,3.9348]
[1756567004856,0.2936,4370.9,4370.1,3.6307]
[1756567005059,0.2936,4370.9,4370.2,0.3041]
[1756567005264,0.4955,4370.9,4370.8,0.496]
[1756567005561,0.4955,4370.9,4370.8,0.231]
[1756567006570,0.4955,4370.9,4370.1,3.2078]
[1756567006777,0.2019,4370.4,4370.3,0.496]
[1756567007070,0.4955,4370.4,4370.3,0.496]
[1756567007765,0.2936,4370.7,4370.3,0.496]
[1756567007970,0.2019,4370.8,4370.7,0.496]
[1756567008163,0.4955,4370.8,4370.7,0.727]
[1756567009368,0.18273804,4373.0,4370.7,0.727]
[1756567009369,0.4955,4371.7,4371.6,0.1919]
[1756567009669,0.4955,4371.7,4371.6,0.231]
[1756567009670,0.2019,4371.7,4371.6,0.231]
[1756567009870,0.4955,4371.7,4371.6,0.231]
[1756567010260,0.4955,4371.7,4371.6,0.496]
[1756567010564,0.2936,4371.6,4371.3,3.5119]
[1756567010759,0.4955,4371.4,4371.3,3.5119]
[1756567010959,0.4955,4371.4,4371.3,3.9348]
[1756567011170,0.4955,4371.4,4371.3,3.7038]
[1756567011560,0.4955,4371.5,4371.4,0.496]
[1756567011760,0.4955,4371.5,4371.4,0.727]
[1756567012068,0.4955,4371.5,4371.4,0.496]
[1756567012268,0.4955,4371.5,4371.4,0.727]
[1756567013569,0.4955,4371.5,4371.4,0.496]
[1756567013773,0.4955,4371.0,4370.9,0.496]
[1756567013970,0.4955,4371.0,4370.9,0.727]
[1756567014372,0.4955,4371.0,4370.9,41.527]
[1756567014673,0.2936,4372.2,4371.0,0.3041]
[1756567014871,0.2019,4371.3,4371.2,0.496]
[1756567015065,0.4955,4371.3,4371.2,0.496]
[1756567016060,0.2936,4371.3,4371.2,0.496]
[1756567016663,3.2078,4372.3,4371.2,0.1919]
[1756567016861,0.4955,4371.5,4371.4,0.496]
[1756567017166,0.4955,4371.5,4371.4,0.232]
[1756567017368,0.2019,4371.5,4371.4,0.232]
[1756567017566,0.2019,4371.5,4371.4,0.728]
[1756567017567,0.4955,4371.5,4371.4,0.728]
[1756567017767,0.2019,4371.5,4371.4,0.728]
[1756567018171,0.2936,4371.8,4371.4,0.728]
[1756567018371,3.2078,4372.3,4371.5,0.3041]
[1756567018566,1.14827625,4372.2,4372.1,0.496]
[1756567018771,0.4955,4372.2,4372.1,0.728]
[1756567019068,0.4955,4372.2,4372.1,0.4239]
[1756567019671,0.4955,4372.2,4372.1,0.232]
[1756567019860,0.4955,4372.2,4372.1,0.4239]
[1756567020066,0.4955,4372.2,4372.1,0.728]
[1756567020270,0.4955,4372.2,4371.8,3.2078]
[1756567020573,0.4955,4371.3,4371.2,33.2551]
[1756567020771,0.4955,4371.3,4371.2,33.4871]
[1756567020772,0.2019,4371.3,4371.2,33.4871]
[1756567020972,0.4955,4371.6,4371.5,0.1919]
[1756567021272,0.4955,4371.6,4371.5,0.728]
[1756567021571,0.4955,4371.6,4371.5,0.496]
[1756567021768,0.2019,4371.6,4371.5,0.232]
[1756567022274,0.4955,4371.6,4371.5,0.232]
[1756567022577,0.4955,4371.6,4371.5,0.728]
[1756567023271,0.2019,4371.6,4371.5,0.728]
[1756567023763,0.4955,4371.6,4371.5,0.4239]
[1756567024170,0.4955,4371.6,4371.5,0.728]
[1756567024568,0.2019,4371.6,4371.5,0.728]
[1756567024769,3.2078,4372.2,4371.6,0.496]
[1756567024770,0.2019,4371.7,4371.6,0.496]
[1756567024970,0.4955,4371.7,4371.6,0.496]
[1756567025869,0.2936,4372.2,4371.6,0.1919]
[1756567026071,1.14809019,4372.1,4372.0,0.496]
[1756567026274,0.4955,4372.1,4372.0,0.728]
[1756567027767,0.4955,4372.1,4372.0,0.4239]
[1756567027968,0.4955,4372.1,4371.0,3.2078]
[1756567027969,0.4829,4372.1,4371.3,0.2801]
[1756567028273,0.232,4373.1,4371.0,3.2078]
[1756567028274,0.4726,4371.1,4371.0,3.6912]
[1756567028473,0.4726,4371.1,4371.0,3.6431]
[1756567028862,0.4726,4371.1,4371.0,0.232]
[1756567030372,0.4726,4371.1,4371.0,0.4353]
[1756567030569,0.4726,4371.1,4371.0,0.7154]
[1756567030764,0.1916,4371.1,4371.0,0.232]
[1756567031374,0.4726,4371.1,4371.0,0.232]
[1756567031673,0.4726,4371.1,4371.0,0.4353]
[1756567031867,3.2078,4371.8,4371.0,0.7154]
[1756567032066,0.4726,4371.1,4371.0,0.7154]
[1756567032267,0.4726,4371.1,4371.0,0.4834]
[1756567032471,0.4726,4371.1,4371.0,0.7154]
[1756567032873,0.4726,4371.1,4371.0,0.4353]
[1756567033075,0.4726,4371.1,4371.0,0.232]
[1756567033668,0.4726,4371.1,4371.0,0.7154]
[1756567034474,0.4726,4371.1,4371.0,0.4834]
[1756567034775,0.4726,4371.1,4371.0,0.232]
[1756567035166,0.1916,4371.1,4371.0,0.232]
[1756567035367,0.4726,4370.7,4370.6,0.4834]
[1756567035671,0.4726,4370.7,4370.6,0.7154]
[1756567037469,3.2078,4371.5,4370.4,32.95]
[1756567037669,1.2347579,4371.8,4370.0,3.2078]
[1756567037670,0.1916,4370.5,4370.0,3.4879]
[1756567037874,0.4726,4370.1,4370.0,3.2078]
[1756567038076,0.4726,4370.1,4370.0,3.4398]
[1756567038477,0.4726,4370.1,4369.3,3.2078]
[1756567038783,3.2078,4370.5,4369.5,0.4834]
[1756567038977,3.2078,4370.5,4369.4,0.232]
[1756567038978,0.93740412,4370.4,4369.6,0.2801]
[1756567039278,0.281,4370.4,4369.6,0.2801]
[1756567039469,0.4726,4370.4,4370.3,0.4834]
[1756567039671,0.4726,4370.4,4370.3,0.7154]
[1756567040172,0.1916,4369.5,4369.4,0.4834]
[1756567040365,0.281,4370.0,4369.6,0.2033]
[1756567040565,0.1916,4369.8,4369.7,0.4834]
[1756567040777,0.4726,4369.8,4369.7,0.4834]
[1756567041373,0.4726,4369.8,4369.7,0.7154]
[1756567041572,0.4726,4369.8,4369.7,0.232]
[1756567041772,0.4726,4369.4,4369.3,3.6912]
[1756567042078,0.4726,4369.4,4369.3,3.9232]
[1756567042673,0.281,4369.9,4369.3,3.6431]
[1756567042874,0.4726,4369.9,4369.8,0.2033]
[1756567043180,0.4726,4369.9,4369.8,0.7154]
[1756567043974,0.4726,4369.9,4369.8,0.232]
[1756567045079,0.4726,4369.9,4369.8,0.4353]
[1756567045382,0.4726,4369.9,4369.8,0.7154]
[1756567046376,0.1916,4369.9,4369.8,0.7154]
[1756567046780,0.4726,4369.9,4369.8,0.7154]
[1756567047678,3.2078,4370.0,4369.9,0.2801]
[1756567047878,3.2078,4370.0,4369.9,0.4834]
[1756567048278,3.2078,4370.5,4370.4,0.2033]
[1756567048479,3.2078,4370.5,4370.4,0.7154]
[1756567049382,3.3994,4370.5,4370.4,0.7154]
[1756567049584,3.6804,4370.5,4370.4,0.7154]
[1756567049985,3.6804,4370.5,4370.4,0.232]
[1756567050375,0.281,4370.4,4369.3,0.2801]
[1756567050582,0.281,4370.4,4369.4,0.232]
[1756567050775,0.281,4369.8,4369.4,0.7154]
[1756567050981,0.4726,4369.8,4369.7,0.2033]
[1756567051182,0.4726,4369.8,4369.7,0.4834]
[1756567051382,3.2078,4370.5,4369.7,0.4834]
[1756567051582,0.1916,4369.9,4369.8,0.4834]
[1756567051783,0.4726,4369.9,4369.8,0.4834]
[1756567052183,0.281,4370.2,4369.8,0.4834]
[1756567052385,0.1916,4370.4,4370.3,0.2033]
[1756567052585,0.4726,4370.4,4370.3,0.4834]
[1756567052783,0.4726,4370.4,4370.3,0.2033]
[1756567052984,0.4726,4370.4,4370.0,0.2801]
[1756567053282,0.4726,4370.4,4369.9,0.232]
[1756567053484,0.1916,4369.4,4369.3,0.4834]
[1756567053685,0.4726,4369.4,4369.3,0.7154]
[1756567053880,0.4726,4369.4,4369.3,0.2033]
[1756567054080,0.4726,4369.4,4369.3,0.232]
[1756567055587,0.4726,4369.4,4369.3,0.7154]
[1756567055789,0.4726,4369.4,4369.3,0.4353]
[1756567055984,0.4726,4369.4,4369.3,0.232]
[1756567056185,0.1916,4369.4,4369.0,33.2311]
[1756567056485,0.281,4369.3,4369.1,0.232]
[1756567056683,0.1916,4369.2,4369.1,0.232]
[1756567056888,0.4726,4369.2,4369.1,0.232]
[1756567057888,0.4726,4369.2,4369.1,0.7361]
[1756567058483,3.2078,4369.5,4368.3,0.3008]
[1756567058688,0.2002,4368.4,4368.3,0.5072]
[1756567058886,0.2002,4368.4,4368.3,0.7392]
[1756567059085,0.2002,4368.4,4368.3,0.5072]
[1756567059491,0.2002,4368.4,4368.3,0.7392]
[1756567059689,0.2811,4368.6,4368.3,0.7392]
[1756567060081,0.2811,4368.6,4368.4,0.3008]
[1756567060391,0.4813,4368.6,4368.5,0.2064]
[1756567060689,0.4813,4368.6,4368.5,0.5072]
[1756567062087,0.2002,4368.3,4368.2,0.5072]
[1756567062388,0.4813,4368.3,4368.2,0.7392]
[1756567062592,0.4813,4368.3,4368.2,0.5072]
[1756567063092,0.4813,4368.3,4368.2,0.7392]
[1756567063488,0.2002,4367.9,4367.8,0.3008]
[1756567063692,0.4813,4367.9,4367.8,0.7392]
[1756567063892,0.4813,4367.9,4367.8,0.5072]
[1756567064086,0.4813,4367.9,4367.8,0.4384]
[1756567065185,0.4813,4367.9,4367.8,0.7392]
[1756567067885,3.2078,4368.4,4367.8,0.4384]
[1756567068093,0.2811,4368.8,4367.9,0.3008]
[1756567068298,0.4813,4368.6,4368.5,0.2064]
[1756567068595,1.13631663,4368.6,4368.4,0.5328]
[1756567068794,0.4813,4368.5,4368.4,0.5328]
[1756567069192,0.4813,4368.5,4368.4,0.7392]
[1756567069497,0.85512347,4368.5,4368.4,0.7392]
[1756567069697,0.2002,4368.5,4368.4,0.7392]
[1756567070797,0.4813,4368.5,4368.4,0.7392]
[1756567071296,1.13620049,4368.5,4368.4,0.7392]
[1756567075100,0.4813,4367.8,4367.7,0.5072]
[1756567075301,0.4813,4367.8,4367.7,0.7392]
[1756567075493,3.2078,4368.3,4367.7,0.7392]
[1756567075494,3.2078,4368.3,4367.8,0.3008]
[1756567075698,0.4813,4368.2,4368.1,0.5072]
[1756567075898,0.4813,4368.2,4368.1,0.7392]
[1756567076495,0.4813,4368.2,4368.1,0.5072]
[1756567076697,0.4813,4368.2,4368.1,0.7392]
[1756567076897,0.4813,4368.2,4368.1,0.4384]
[1756567077096,0.4813,4368.2,4368.1,0.232]
[1756567077803,0.4813,4368.2,4367.8,0.3008]
[1756567078002,0.4813,4368.2,4367.9,0.232]
[1756567078597,0.2811,4368.1,4367.9,0.5328]
[1756567078804,0.4813,4368.0,4367.9,0.7392]
[1756567080198,0.2002,4368.0,4367.6,32.961]
[1756567080396,0.4813,4367.7,4367.6,32.961]
[1756567080603,1.13664931,4367.7,4367.6,0.232]
[1756567081003,1.13664931,4367.7,4367.5,0.232]
[1756567081205,0.65560275,4367.6,4367.5,0.232]
[1756567081506,0.4813,4367.1,4366.8,0.3008]
[1756567081697,0.4813,4367.1,4366.4,3.2078]
[1756567081698,0.4813,4367.1,4366.9,0.232]
[1756567081898,0.2811,4367.0,4366.9,0.232]
[1756567082095,0.2811,4367.2,4366.9,0.4384]
[1756567082403,3.2078,4367.3,4367.2,0.5072]
[1756567083504,3.6891,4367.3,4367.2,0.7392]
[1756567083903,0.4813,4367.3,4367.2,0.7392]
[1756567084505,0.2002,4367.3,4367.2,0.7392]
[1756567084904,0.4813,4367.3,4367.2,0.7392]
[1756567085302,0.2002,4367.3,4367.2,0.7392]
[1756567086000,1.13720059,4367.3,4367.2,0.7392]
[1756567086200,1.13720059,4367.3,4367.2,0.5072]
[1756567086401,1.13720059,4367.3,4367.2,0.7392]
[1756567087611,0.2905,4367.8,4367.3,0.3091]
[1756567087908,1.14440005,4367.7,4367.6,0.5054]
[1756567089810,3.2078,4367.9,4367.6,0.5054]
[1756567090011,3.2078,4367.9,4367.8,0.1963]
[1756567090308,3.2078,4368.4,4368.3,0.5054]
[1756567090514,3.86419232,4368.4,4368.3,0.5054]
[1756567091315,3.2078,4368.4,4368.3,0.5054]
[1756567091515,0.2905,4368.7,4368.6,0.1963]
[1756567091711,0.65651141,4368.9,4368.6,0.7374]
[1756567091925,0.65651141,4368.8,4368.7,0.3091]
[1756567092122,0.65651141,4368.8,4368.7,0.5054]
[1756567092525,1.14481141,4368.8,4368.4,0.3091]
[1756567092822,0.4883,4368.4,4368.3,0.7374]
[1756567093123,1.14481141,4368.4,4368.3,0.7374]
[1756567094218,0.4883,4368.4,4368.3,0.7374]
[1756567094414,3.2078,4369.0,4368.3,0.4283]
[1756567094614,0.1978,4368.8,4368.7,0.1963]
[1756567094820,1.14488266,4368.8,4368.7,0.5054]
[1756567096816,1.14488266,4368.8,4368.7,0.1963]
[1756567097218,1.14488266,4368.8,4368.3,0.3091]
[1756567097419,0.1978,4368.4,4368.3,0.1963]
[1756567097619,0.4883,4368.4,4368.3,0.7374]
[1756567100524,0.4883,4368.4,4368.3,0.4283]
[1756567100724,0.4883,4368.4,4368.3,0.7374]
[1756567101028,0.4883,4368.4,4368.3,0.4283]
[1756567101229,0.4883,4368.4,4368.2,0.232]
[1756567101625,0.4883,4368.4,4367.7,0.4283]
[1756567101626,0.1978,4367.8,4367.7,0.4283]
[1756567101830,0.4883,4367.8,4367.6,3.2078]
[1756567102132,0.232,4369.0,4366.2,32.974]
[1756567102133,0.4883,4367.6,4367.5,0.232]
[1756567102320,0.4883,4367.5,4367.4,0.7374]
[1756567102523,0.4883,4367.5,4367.4,0.5054]
[1756567102730,0.4883,4367.5,4367.4,0.7374]
[1756567102923,0.4883,4367.5,4367.4,0.4283]
[1756567103119,0.4883,4367.5,4367.4,0.232]
[1756567103322,0.4883,4367.5,4367.0,3.2078]
[1756567103520,0.1978,4367.5,4367.1,0.5411]
[1756567103723,3.2078,4368.0,4367.1,0.5411]
[1756567103724,0.1978,4367.2,4367.1,0.5054]
[1756567103920,0.4883,4367.2,4367.1,0.7374]
[1756567104528,0.1978,4367.2,4367.1,0.4283]
[1756567105125,0.4883,4367.2,4367.1,0.7374]
[1756567106628,0.2905,4367.9,4367.2,0.3091]
[1756567106827,1.14495755,4367.8,4367.7,0.5054]
[1756567109334,0.85445755,4367.8,4367.7,0.5054]
[1756567109735,1.14495755,4367.8,4367.7,0.5054]
[1756567111038,0.4883,4367.8,4367.7,0.5054]
[1756567111437,1.14500101,4367.8,4367.7,0.5054]
[1756567111933,0.85450101,4367.8,4367.7,0.5054]
[1756567112138,0.4883,4367.8,4367.7,0.5054]
[1756567113337,3.4056,4368.0,4367.9,0.5054]
[1756567113535,3.86461722,4368.0,4367.9,0.5054]
[1756567113737,3.2078,4368.0,4367.9,0.5054]
[1756567115535,0.2905,4368.3,4368.0,0.3091]
[1756567115744,0.2905,4368.3,4368.2,0.1963]
[1756567116035,0.4883,4368.3,4368.2,0.5054]
[1756567117843,0.2928,4368.5,4368.2,0.7374]
[1756567118040,0.4815,4369.0,4368.9,0.1969]
[1756567118239,0.4815,4369.0,4368.9,0.4856]
[1756567120044,0.4815,4369.0,4368.8,0.221]
[1756567120347,0.1887,4369.0,4368.0,3.2078]
[1756567120547,0.2928,4368.9,4368.2,0.2887]
[1756567120940,0.2928,4368.9,4368.3,0.22891]
[1756567121147,0.2928,4369.5,4368.3,0.2887]
[1756567121348,0.2928,4369.3,4368.3,0.2887]
[1756567121540,0.1887,4368.5,4368.4,0.2887]
[1756567121746,0.4815,4368.5,4368.4,0.4856]
[1756567122449,0.1887,4368.5,4368.4,0.4856]
[1756567123146,0.4815,4368.5,4368.4,0.4856]
[1756567124250,0.4815,4368.5,4368.4,0.7176]
[1756567126252,3.2078,4369.6,4368.7,0.4856]
[1756567126550,0.1887,4368.9,4368.8,0.4856]
[1756567127044,0.4815,4368.9,4368.8,0.4856]
[1756567127944,0.1887,4368.9,4368.8,0.4856]
[1756567128345,0.1887,4368.9,4368.4,0.232]
[1756567128346,0.4815,4368.9,4368.4,0.232]
[1756567128650,0.4815,4368.9,4368.5,0.2887]
[1756567128948,0.4815,4368.9,4368.4,0.232]
[1756567129150,0.4815,4368.9,4368.0,3.3863041]
[1756567129345,0.2928,4368.8,4368.1,0.46091]
[1756567129545,3.2078,4369.6,4368.1,0.46091]
[1756567129546,0.2928,4369.4,4368.2,0.2887]
[1756567129747,0.65593917,4369.3,4368.2,0.2887]
[1756567130050,0.2928,4369.2,4368.2,0.2887]
[1756567131953,0.4815,4368.4,4368.3,0.7176]
[1756567132149,0.1887,4368.4,4368.3,0.7176]
[1756567132352,0.4815,4368.7,4368.6,0.1969]
[1756567132549,0.22889,4369.5,4368.6,0.4856]
[1756567132760,0.4815,4369.4,4369.3,0.4856]
[1756567133059,0.4815,4369.4,4369.3,0.7176]
[1756567134761,0.4815,4369.5,4369.4,0.2887]
[1756567135054,0.4815,4369.5,4369.4,0.4856]
[1756567140564,0.2928,4369.4,4369.0,0.2887]
[1756567140862,0.4815,4368.6,4368.5,3.4047]
[1756567141056,0.4815,4368.6,4368.5,3.6367]
[1756567141258,0.4815,4368.6,4368.5,3.9254]
[1756567143459,3.2078,4369.6,4368.6,0.2887]
[1756567143658,1.36746103,4369.5,4369.4,0.1969]
[1756567143862,1.13858102,4369.5,4369.4,0.1969]
[1756567144063,1.36744102,4369.5,4369.2,0.2887]
[1756567144261,0.4815,4369.3,4369.2,0.4856]
[1756567144565,1.13858102,4369.3,4369.2,0.4856]
[1756567145362,1.13858102,4369.3,4369.2,0.1969]
[1756567147063,1.13858102,4369.3,4368.5,3.4398]
[1756567147264,0.95438102,4369.2,4368.6,0.2996]
[1756567147462,0.85468102,4369.1,4369.0,0.1928]
[1756567147663,1.15198102,4369.1,4369.0,0.4924]
[1756567151267,0.65708102,4369.1,4369.0,0.4924]
[1756567151463,0.95438102,4369.3,4369.0,0.4924]
[1756567151773,1.2347579,4370.0,4368.5,3.4398]
[1756567151774,1.15198102,4369.2,4369.1,0.7244]
[1756567154060,0.85468102,4369.2,4369.1,0.7244]
[1756567154267,0.1976,4369.2,4369.1,0.7244]
[1756567154467,0.4949,4369.2,4369.1,0.7244]
[1756567156471,3.2078,4370.2,4369.2,0.2996]
[1756567156672,0.1976,4369.3,4369.2,0.4924]
[1756567157062,1.15244465,4369.3,4369.2,0.4924]
[1756567158070,0.4949,4369.3,4369.2,0.4924]
[1756567158266,0.4949,4369.8,4369.7,0.1928]
[1756567158669,1.15240368,4369.8,4369.4,0.2996]
[1756567158967,0.1976,4369.3,4369.2,0.4924]
[1756567159168,0.4949,4369.3,4369.2,0.4924]
[1756567163975,3.2078,4370.2,4369.2,0.1928]
[1756567164176,0.1976,4369.4,4369.3,0.4924]
[1756567164378,0.4949,4369.4,4369.3,0.4924]
[1756567164874,1.15244709,4369.4,4369.3,0.4924]
[1756567165468,1.15244709,4369.4,4369.3,0.7244]
[1756567165664,0.85514709,4369.4,4369.0,3.2078]
[1756567165869,0.4949,4369.4,4369.3,0.232]
[1756567166070,0.4949,4369.4,4368.9,0.2996]
[1756567166268,0.4949,4368.7,4368.6,0.2996]
[1756567166474,0.4949,4368.7,4368.6,0.5316]
[1756567166873,0.4949,4368.7,4368.6,0.7244]
[1756567167679,0.4949,4368.7,4368.6,0.4924]
[1756567167881,0.4949,4368.7,4368.6,0.7244]
[1756567169180,0.4949,4368.7,4368.6,0.4924]
[1756567169382,0.4949,4368.7,4368.6,0.7244]
[1756567170277,0.4949,4368.7,4368.6,0.4924]
[1756567170481,0.4949,4368.7,4368.6,0.7244]
[1756567170773,0.2973,4368.6,4368.5,3.5074]
[1756567170980,0.4949,4368.6,4368.5,3.9322]
[1756567171574,0.4949,4368.6,4368.5,0.7244]
[1756567177877,3.2078,4369.2,4368.6,0.3045]
[1756567178079,1.15855208,4369.1,4369.0,0.501]
[1756567185990,0.2963,4369.0,4368.1,0.3045]
[1756567186195,0.5011,4368.2,4368.1,0.501]
[1756567186397,0.5011,4368.2,4368.1,0.733]
[1756567189194,0.2048,4368.2,4368.1,0.733]
[1756567191501,0.5011,4368.2,4368.1,0.733]
[1756567191998,0.5011,4368.3,4368.2,0.501]
[1756567192601,0.5011,4368.3,4368.2,0.733]
[1756567193200,0.5011,4368.3,4368.2,0.501]
[1756567193403,0.5011,4368.3,4368.2,0.733]
[1756567195501,3.4126,4368.7,4368.6,0.501]
[1756567195703,4.06989918,4368.7,4368.6,0.501]